fUST/lending_fUST_20250428
["ID","MTS","AMOUNT","RATE_DAILY","PERIOD"]
[359202236,1745807435544,-400.0,0.00033423,2]
[359202237,1745807435553,-400.0,0.00033423,2]
[359202238,1745807435563,-400.0,0.00033424,2]
[359202239,1745807435572,-206.64088528,0.00033424,2]
[359202240,1745807435581,-207.28691707,0.00033424,2]
[359202241,1745807435590,-209.01255433,0.00033424,2]
[359202242,1745807435600,-239.54689661,0.00033424,2]
[359202243,1745807435611,-211.46530617,0.00033424,2]
[359202244,1745807435621,-400.0,0.00033424,2]
[359202245,1745807435630,-218.49831155,0.00033424,2]
[359202246,1745807435640,-210.0500745,0.00033424,2]
[359202247,1745807435651,-400.0,0.00033424,2]
[359202248,1745807435662,-400.0,0.00033424,2]
[359202249,1745807435671,-400.0,0.00033424,2]
[359202250,1745807435681,-400.0,0.00033424,2]
[359202251,1745807435690,-482.11883017,0.00033424,2]
[359202252,1745807435700,-400.0,0.00033424,2]
[359202253,1745807435709,-200.0,0.00033424,2]
[359202254,1745807435719,-316.35,0.00033424,2]
[359202255,1745807435728,-762.54,0.00033424,2]
[359202256,1745807435738,-982.9,0.00033424,2]
[359202257,1745807435747,-400.0,0.00033424,2]
[359202258,1745807435757,-400.0,0.00033424,2]
[359202259,1745807435766,-400.0,0.00033424,2]
[359202260,1745807435776,-400.0,0.00033424,2]
[359202261,1745807435812,-562.53,0.00033424,2]
[359202262,1745807435821,-204.15042845,0.00033424,2]
[359202263,1745807435831,-400.0,0.00033424,2]
[359202264,1745807435840,-282.13269786,0.00033424,2]
[359202265,1745807435849,-540.3,0.00033424,2]
[359202266,1745807435859,-400.0,0.00033424,2]
[359202267,1745807435868,-400.0,0.00033424,2]
[359202268,1745807435878,-536.8,0.00033424,2]
[359202269,1745807435888,-400.0,0.00033424,2]
[359202270,1745807435898,-200.0,0.00033424,2]
[359202271,1745807435907,-500.0,0.00033473,5]
[359202272,1745807435918,-500.0,0.00033473,2]
[359202273,1745807435927,-500.0,0.00033473,5]
[359202274,1745807435937,-300.0,0.00033473,5]
[359202275,1745807435947,-1945.840606,0.0003351,120]
[359202276,1745807435957,-500.0,0.00033673,2]
[359202277,1745807435968,-468.62230801,0.00033693,11]
[359202278,1745807435979,-400.0,0.00033695,2]
[359202279,1745807435989,-400.0,0.00033695,2]
[359202280,1745807435998,-400.0,0.00033695,2]
[359202281,1745807436008,-400.0,0.00033695,2]
[359202282,1745807436017,-515.4,0.00033695,2]
[359202283,1745807436027,-400.0,0.00033695,2]
[359202284,1745807436036,-400.0,0.00033695,2]
[359202285,1745807436046,-400.0,0.00033697,2]
[359202286,1745807436055,-400.0,0.00033697,2]
[359202287,1745807436065,-400.0,0.00033697,2]
[359202288,1745807436074,-400.0,0.00033697,2]
[359202289,1745807436083,-400.0,0.00033697,2]
[359202290,1745807436093,-400.0,0.00033697,2]
[359202291,1745807436102,-400.0,0.00033697,2]
[359202292,1745807436111,-400.0,0.00033697,2]
[359202293,1745807436121,-400.0,0.00033697,2]
[359202294,1745807436130,-400.0,0.00033697,2]
[359202295,1745807436139,-400.0,0.00033697,2]
[359202296,1745807436148,-400.0,0.00033697,2]
[359202297,1745807436157,-400.0,0.00033697,2]
[359202298,1745807436168,-282.87684678,0.00033697,2]
[359202299,1745807436178,-400.0,0.00033697,2]
[359202300,1745807436187,-202.74272902,0.00033697,2]
[359202301,1745807436196,-261.62340974,0.00033697,2]
[359202302,1745807436207,-400.0,0.00033697,2]
[359202303,1745807436218,-400.0,0.00033697,2]
[359202304,1745807436227,-400.0,0.00033697,2]
[359202305,1745807436237,-400.0,0.00033697,2]
[359202306,1745807436246,-204.91898771,0.00033697,2]
[359202307,1745807436255,-202.25006492,0.00033697,2]
[359202308,1745807436264,-400.0,0.00033697,2]
[359202309,1745807436273,-400.0,0.00033697,2]
[359202310,1745807436282,-400.0,0.00033697,2]
[359202311,1745807436291,-400.0,0.00033697,2]
[359202312,1745807436300,-400.0,0.00033698,2]
[359202313,1745807436310,-399.29,0.00033698,2]
[359202314,1745807436319,-204.50460148,0.00033698,2]
[359202315,1745807436328,-400.0,0.00033698,2]
[359202316,1745807436337,-400.0,0.00033698,2]
[359202317,1745807436347,-512.87946961,0.00033698,2]
[359202318,1745807436356,-762.54,0.00033698,2]
[359202319,1745807436365,-982.9,0.00033698,2]
[359202320,1745807436374,-400.0,0.00033698,2]
[359202321,1745807436384,-400.0,0.00033698,2]
[359202322,1745807436394,-400.0,0.00033698,2]
[359202323,1745807436404,-400.0,0.00033698,2]
[359202324,1745807436413,-562.53,0.00033698,2]
[359202325,1745807436423,-400.0,0.00033698,2]
[359202326,1745807436433,-540.3,0.00033698,2]
[359202327,1745807436443,-400.0,0.00033698,2]
[359202328,1745807436452,-400.0,0.00033698,2]
[359202329,1745807436462,-536.8,0.00033698,2]
[359202330,1745807436473,-400.0,0.00033698,2]
[359202331,1745807436482,-925.7,0.000337,7]
[359202332,1745807436492,-400.0,0.00033969,2]
[359202333,1745807436502,-177.41522095,0.00033969,2]
[359202334,1745807436512,-400.0,0.00033969,2]
[359202335,1745807436521,-400.0,0.00033969,2]
[359202336,1745807436531,-515.4,0.00033969,2]
[359202337,1745807436540,-400.0,0.00033969,2]
[359202338,1745807436551,-400.0,0.00033969,2]
[359202339,1745807436562,-316.17721299,0.00033971,2]
[359202340,1745807436572,-311.4334745,0.00033971,2]
[359202341,1745807436582,-309.93068359,0.00033971,2]
[359202342,1745807436592,-328.20307751,0.00033971,2]
[359202343,1745807436601,-311.38377148,0.00033971,2]
[359202344,1745807436610,-310.55411702,0.00033971,2]
[359202345,1745807436619,-312.80487068,0.00033971,2]
[359202346,1745807436628,-312.6727273,0.00033971,2]
[359202347,1745807436637,-313.54935208,0.00033971,2]
[359202348,1745807436647,-311.9813325,0.00033971,2]
[359202349,1745807436656,-310.07576023,0.00033971,2]
[359202350,1745807436666,-313.18583584,0.00033971,2]
[359202351,1745807436675,-400.0,0.00033971,2]
[359202352,1745807436687,-524.05198976,0.00033971,2]
[359202353,1745807436696,-400.0,0.00033971,2]
[359202354,1745807436706,-400.0,0.00033971,2]
[359202355,1745807436715,-400.0,0.00033971,2]
[359202356,1745807436726,-400.0,0.00033971,2]
[359202357,1745807436736,-400.0,0.00033971,2]
[359202358,1745807436746,-400.0,0.00033971,2]
[359202359,1745807436756,-400.0,0.00033971,2]
[359202360,1745807436766,-400.0,0.00033971,2]
[359202361,1745807436775,-400.0,0.00033972,2]
[359202362,1745807436785,-400.0,0.00033972,2]
[359202363,1745807436794,-400.0,0.00033972,2]
[359202364,1745807436804,-762.54,0.00033972,2]
[359202365,1745807436814,-982.9,0.00033972,2]
[359202366,1745807436824,-400.0,0.00033972,2]
[359202367,1745807436833,-400.0,0.00033972,2]
[359202368,1745807436843,-400.0,0.00033972,2]
[359202369,1745807436853,-400.0,0.00033972,2]
[359202370,1745807436862,-562.53,0.00033972,2]
[359202371,1745807436871,-400.0,0.00033972,2]
[359202372,1745807436881,-540.3,0.00033972,2]
[359202373,1745807436890,-407.34802787,0.00033972,2]
[359202374,1745807436900,-400.0,0.00033972,2]
[359202375,1745807436910,-536.8,0.00033972,2]
[359202376,1745807436919,-400.0,0.00033972,2]
[359202377,1745807436929,-500.0,0.00033973,5]
[359202378,1745807436938,-500.0,0.00033973,5]
[359202379,1745807436948,-501.16613574,0.00033973,5]
[359202380,1745807436957,-530.42895787,0.00033973,5]
[359202381,1745807436972,-500.0,0.00033973,5]
[359202382,1745807436981,-501.12664952,0.00033973,5]
[359202383,1745807436991,-500.0,0.00033973,5]
[359202384,1745807437001,-500.36572365,0.00033973,5]
[359202385,1745807437011,-501.65208727,0.00033973,5]
[359202386,1745807437020,-500.30947231,0.00033973,5]
[359202387,1745807437031,-501.22587563,0.00033973,5]
[359202388,1745807437041,-500.95122119,0.00033973,5]
[359202389,1745807437052,-500.0,0.00033973,5]
[359202390,1745807437065,-500.41713557,0.00033973,5]
[359202391,1745807437075,-500.0,0.00033973,5]
[359202392,1745807437085,-151104.747094,0.0003399,2]
[359202393,1745807437096,-151.0,0.00033999,43]
[359202394,1745807437107,-37761.16607091,0.00034,30]
[359202395,1745807437117,-468.62230801,0.00034038,11]
[359202396,1745807437127,-400.0,0.00034243,2]
[359202397,1745807437136,-495.2728169,0.00034243,2]
[359202398,1745807437145,-400.0,0.00034243,2]
[359202399,1745807437156,-515.4,0.00034243,2]
[359202400,1745807437166,-400.0,0.00034243,2]
[359202401,1745807437176,-400.0,0.00034243,2]
[359202402,1745807437186,-418.21534218,0.00034245,2]
[359202403,1745807437195,-411.48853069,0.00034245,2]
[359202404,1745807437206,-400.0,0.00034245,2]
[359202405,1745807437216,-400.0,0.00034245,2]
[359202406,1745807437226,-416.51862825,0.00034245,2]
[359202407,1745807437236,-405.65494959,0.00034245,2]
[359202408,1745807437245,-407.32323011,0.00034245,2]
[359202409,1745807437255,-400.0,0.00034245,2]
[359202410,1745807437265,-400.0,0.00034245,2]
[359202411,1745807437275,-400.0,0.00034246,2]
[359202412,1745807437285,-400.0,0.00034246,2]
[359202413,1745807437296,-400.0,0.00034246,2]
[359202414,1745807437307,-762.54,0.00034246,2]
[359202415,1745807437319,-982.9,0.00034246,2]
[359202416,1745807437328,-400.0,0.00034246,2]
[359202417,1745807437338,-150.42608994,0.00034246,2]
[359202418,1745807437347,-400.0,0.00034246,2]
[359202419,1745807437356,-400.0,0.00034246,2]
[359202420,1745807437366,-562.53,0.00034246,2]
[359202421,1745807437375,-400.0,0.00034246,2]
[359202422,1745807437385,-540.3,0.00034246,2]
[359202423,1745807437395,-516.32756983,0.00034246,2]
[359202424,1745807437404,-536.8,0.00034246,2]
[359202425,1745807437414,-400.0,0.00034246,2]
[359202426,1745807437424,-241.969622,0.00034262,10]
[359202427,1745807437435,-151104.747094,0.00034263,2]
[359202428,1745807437445,-504.82246203,0.00034273,5]
[359202429,1745807437455,-500.85149824,0.00034273,5]
[359202430,1745807437464,-500.98614807,0.00034273,5]
[359202431,1745807437475,-500.3072456,0.00034273,5]
[359202432,1745807437484,-501.78080791,0.00034273,5]
[359202433,1745807437493,-512.06997824,0.00034273,5]
[359202434,1745807437503,-500.0,0.00034273,5]
[359202435,1745807437513,-501.04981614,0.00034273,5]
[359202436,1745807437523,-500.0,0.00034273,5]
[359202437,1745807437532,-500.70348162,0.00034273,5]
[359202438,1745807437542,-500.0,0.00034273,5]
[359202439,1745807437552,-500.27735169,0.00034273,5]
[359202440,1745807437562,-500.0,0.00034273,5]
[359202441,1745807437571,-500.23402258,0.00034273,5]
[359202442,1745807437581,-500.0,0.00034273,5]
[359202443,1745807437591,-500.0,0.00034273,5]
[359202444,1745807437601,-500.0,0.00034273,5]
[359202445,1745807437610,-500.0,0.00034273,5]
[359202446,1745807437620,-160.903505,0.00034273,5]
[359202447,1745807437630,-617.38952317,0.00034273,5]
[359202448,1745807437639,-530.88090057,0.00034273,5]
[359202449,1745807437649,-503.06882158,0.00034273,5]
[359202450,1745807437659,-501.44827743,0.00034273,5]
[359202451,1745807437669,-504.938814,0.00034273,5]
[359202452,1745807437679,-500.0,0.00034273,3]
[359202453,1745807437690,-333.7364528,0.00034273,5]
[359202454,1745807437700,-269.97573872,0.00034273,5]
[359202455,1745807437709,-152.01611015,0.00034273,5]
[359202456,1745807437721,-151104.747094,0.0003429,2]
[359202457,1745807437731,-158968.22,0.000343,30]
[359202458,1745807437741,-2230.89,0.000343,30]
[359202459,1745807437751,-468.62230801,0.00034383,11]
[359202460,1745807437761,-400.0,0.00034517,2]
[359202461,1745807437771,-400.0,0.00034517,2]
[359202462,1745807437780,-515.4,0.00034517,2]
[359202463,1745807437790,-400.0,0.00034517,2]
[359202464,1745807437800,-400.0,0.00034517,2]
[359202465,1745807437809,-510.60153508,0.00034519,2]
[359202466,1745807437819,-511.24645808,0.00034519,2]
[359202467,1745807437829,-400.0,0.00034519,2]
[359202468,1745807437839,-400.0,0.0003452,2]
[359202469,1745807437849,-400.0,0.0003452,2]
[359202470,1745807437859,-400.0,0.0003452,2]
[359202471,1745807437869,-762.54,0.0003452,2]
[359202472,1745807437879,-982.9,0.0003452,2]
[359202473,1745807437889,-400.0,0.0003452,2]
[359202474,1745807437899,-400.0,0.0003452,2]
[359202475,1745807437908,-400.0,0.0003452,2]
[359202476,1745807437919,-562.53,0.0003452,2]
[359202477,1745807437929,-400.0,0.0003452,2]
[359202478,1745807437939,-540.3,0.0003452,2]
[359202479,1745807437948,-536.8,0.0003452,2]
[359202480,1745807437958,-400.0,0.0003452,2]
[359202481,1745807437971,-978.58,0.000347,7]
[359202482,1745807437981,-468.62230801,0.00034728,12]
[359202483,1745807437991,-400.0,0.00034791,2]
[359202484,1745807438000,-400.0,0.00034791,2]
[359202485,1745807438010,-515.4,0.00034791,2]
[359202486,1745807438020,-400.0,0.00034791,2]
[359202487,1745807438030,-400.0,0.00034791,2]
[359202488,1745807438039,-400.0,0.00034793,2]
[359202489,1745807438049,-400.0,0.00034794,2]
[359202490,1745807438059,-400.0,0.00034794,2]
[359202491,1745807438068,-400.0,0.00034794,2]
[359202492,1745807438078,-762.54,0.00034794,2]
[359202493,1745807438087,-982.9,0.00034794,2]
[359202494,1745807438097,-400.0,0.00034794,2]
[359202495,1745807438107,-200.0,0.00034794,2]
[359202496,1745807438116,-200.0,0.00034794,2]
[359202497,1745807438126,-562.53,0.00034794,2]
[359202498,1745807438136,-400.0,0.00034794,2]
[359202500,1745807438145,-540.3,0.00034794,2]
[359202502,1745807438155,-536.8,0.00034794,2]
[359202503,1745807438165,-400.0,0.00034794,2]
[359202504,1745807438175,-151.0,0.00034999,30]
[359202505,1745807438185,-151.0,0.00034999,46]
[359202506,1745807438194,-205.2795,0.00035,5]
[359202507,1745807438204,-205.2795,0.00035,5]
[359202508,1745807438214,-203.33869641,0.00035,30]
[359202509,1745807438225,-409.7435,0.00035,5]
[359202510,1745807438235,-409.7435,0.00035,5]
[359202511,1745807438244,-500.0,0.00035,15]
[359202513,1745807438254,-500.0,0.00035,13]
[359202515,1745807438264,-400.0,0.00035065,2]
[359202518,1745807438274,-210.5527302,0.00035065,2]
[359202520,1745807438284,-515.4,0.00035065,2]
[359202522,1745807438293,-400.0,0.00035065,2]
[359202524,1745807438303,-400.0,0.00035065,2]
[359202526,1745807438313,-400.0,0.00035067,2]
[359202528,1745807438323,-400.0,0.00035068,2]
[359202530,1745807438332,-224.85,0.00035068,2]
[359202532,1745807438342,-400.0,0.00035068,2]
[359202534,1745807438352,-762.54,0.00035068,2]
[359202536,1745807438361,-982.9,0.00035068,2]
[359202538,1745807438372,-400.0,0.00035068,2]
[359202539,1745807438382,-562.53,0.00035068,2]
[359202540,1745807438392,-400.0,0.00035068,2]
[359202541,1745807438401,-540.3,0.00035068,2]
[359202542,1745807438411,-536.8,0.00035068,2]
[359202543,1745807438421,-400.0,0.00035068,2]
[359202544,1745807438431,-468.62230801,0.00035072,12]
[359202545,1745807438441,-600.0,0.00035116,5]
[359202546,1745807438450,-400.0,0.00035339,2]
[359202547,1745807438459,-515.4,0.00035339,2]
[359202548,1745807438469,-400.0,0.00035339,2]
[359202549,1745807438479,-400.0,0.00035339,2]
[359202550,1745807438489,-343.76920582,0.00035341,2]
[359202551,1745807438499,-400.0,0.00035342,2]
[359202552,1745807438509,-400.0,0.00035342,2]
[359202553,1745807438519,-762.54,0.00035342,2]
[359202554,1745807438528,-982.9,0.00035342,2]
[359202555,1745807438537,-400.0,0.00035342,2]
[359202556,1745807438547,-562.53,0.00035342,2]
[359202557,1745807438557,-487.23101861,0.00035342,2]
[359202559,1745807438567,-540.3,0.00035342,2]
[359202560,1745807438577,-536.8,0.00035342,2]
[359202562,1745807438587,-400.0,0.00035342,2]
[359202564,1745807438596,-468.62230801,0.00035417,12]
[359202565,1745807438606,-500.0,0.00035423,60]
[359202566,1745807438616,-8044.79726238,0.00035529,2]
[359202567,1745807438625,-188.899488,0.00035591,2]
[359202568,1745807438634,-400.0,0.00035613,2]
[359202569,1745807438643,-515.4,0.00035613,2]
[359202570,1745807438652,-400.0,0.00035613,2]
[359202571,1745807438662,-400.0,0.00035613,2]
[359202572,1745807438671,-531.30437169,0.00035616,2]
[359202573,1745807438680,-400.0,0.00035616,2]
[359202574,1745807438690,-762.54,0.00035616,2]
[359202575,1745807438700,-982.9,0.00035616,2]
[359202576,1745807438710,-400.0,0.00035616,2]
[359202577,1745807438721,-562.53,0.00035616,2]
[359202578,1745807438730,-540.3,0.00035616,2]
[359202579,1745807438740,-536.8,0.00035616,2]
[359202580,1745807438750,-400.0,0.00035616,2]
[359202581,1745807438760,-468.62230801,0.00035762,12]
[359202582,1745807438771,-223.0,0.00035876,2]
[359202584,1745807438780,-223.0,0.00035876,2]
[359202586,1745807438790,-400.0,0.00035887,2]
[359202588,1745807438800,-515.4,0.00035887,2]
[359202590,1745807438810,-400.0,0.00035887,2]
[359202591,1745807438820,-400.0,0.00035887,2]
[359202592,1745807438830,-400.0,0.0003589,2]
[359202593,1745807438839,-762.54,0.0003589,2]
[359202594,1745807438850,-982.9,0.0003589,2]
[359202595,1745807438859,-400.0,0.0003589,2]
[359202596,1745807438870,-562.53,0.0003589,2]
[359202597,1745807438880,-540.3,0.0003589,2]
[359202598,1745807438890,-536.8,0.0003589,2]
[359202599,1745807438900,-400.0,0.0003589,2]
[359202600,1745807438910,-925.7,0.000359,7]
[359202601,1745807438920,-199.06604796,0.00035955,2]
[359202602,1745807438930,-501.04574452,0.00035973,5]
[359202603,1745807438939,-500.0,0.00035973,5]
[359202605,1745807438949,-500.81255343,0.00035973,5]
[359202607,1745807438959,-500.0,0.00035973,5]
[359202609,1745807438971,-501.35186392,0.00035973,5]
[359202611,1745807438981,-1934.16378906,0.0003599,3]
[359202613,1745807438990,-2000.0,0.00036,5]
[359202615,1745807439000,-2000.0,0.00036,3]
[359202617,1745807439010,-2000.0,0.00036,3]
[359202619,1745807439019,-2000.0,0.00036,3]
[359202621,1745807439029,-2000.0,0.00036,3]
[359202623,1745807439038,-2000.0,0.00036,5]
[359202625,1745807439048,-2000.0,0.00036,3]
[359202626,1745807439058,-2000.0,0.00036,3]
[359202627,1745807439172,-2000.0,0.00036,3]
[359202628,1745807439182,-2000.0,0.00036,3]
[359202629,1745807439191,-2000.0,0.00036,3]
[359202630,1745807439200,-2000.0,0.00036,3]
[359202631,1745807439209,-2000.0,0.00036,3]
[359202632,1745807439218,-2000.0,0.00036,3]
[359202633,1745807439228,-2000.0,0.00036,3]
[359202634,1745807439237,-2000.0,0.00036,3]
[359202635,1745807439246,-2000.0,0.00036,3]
[359202636,1745807439255,-2000.0,0.00036,3]
[359202637,1745807439264,-2000.0,0.00036,3]
[359202638,1745807439273,-2000.0,0.00036,3]
[359202639,1745807439282,-2000.0,0.00036,3]
[359202640,1745807439292,-2000.0,0.00036,3]
[359202641,1745807439302,-2000.0,0.00036,3]
[359202642,1745807439311,-2000.0,0.00036,3]
[359202643,1745807439320,-2000.0,0.00036,3]
[359202644,1745807439329,-2000.0,0.00036,3]
[359202645,1745807439338,-2000.0,0.00036,3]
[359202646,1745807439347,-2000.0,0.00036,3]
[359202647,1745807439357,-2000.0,0.00036,3]
[359202648,1745807439366,-2000.0,0.00036,3]
[359202649,1745807439375,-2000.0,0.00036,3]
[359202650,1745807439384,-2000.0,0.00036,3]
[359202651,1745807439393,-2000.0,0.00036,3]
[359202652,1745807439402,-2000.0,0.00036,3]
[359202653,1745807439411,-2000.0,0.00036,3]
[359202654,1745807439419,-2000.0,0.00036,3]
[359202655,1745807439429,-899.21,0.00036,30]
[359202656,1745807439438,-2230.89,0.00036,30]
[359202657,1745807439447,-160.0,0.00036,3]
[359202658,1745807439456,-1431.95711546,0.00036,30]
[359202659,1745807439466,-468.62230801,0.00036107,13]
[359202660,1745807439476,-311.93391973,0.00036161,2]
[359202661,1745807439486,-515.4,0.00036161,2]
[359202662,1745807439495,-170.89462268,0.00036161,2]
[359202663,1745807439504,-400.0,0.00036161,2]
[359202664,1745807439513,-400.0,0.00036164,2]
[359202665,1745807439522,-762.54,0.00036164,2]
[359202666,1745807439532,-982.9,0.00036164,2]
[359202667,1745807439541,-400.0,0.00036164,2]
[359202668,1745807439550,-562.53,0.00036164,2]
[359202669,1745807439559,-540.3,0.00036164,2]
[359202670,1745807439569,-536.8,0.00036164,2]
[359202671,1745807439578,-400.0,0.00036164,2]
[359202672,1745807439587,-501.46182364,0.00036173,5]
[359202673,1745807439596,-500.69190383,0.00036173,5]
[359202674,1745807439606,-151.0,0.00036199,30]
[359202675,1745807439615,-155.0,0.00036199,30]
[359202676,1745807439624,-151.25470582,0.00036199,30]
[359202677,1745807439634,-200.0,0.00036199,30]
[359202678,1745807439644,-158968.22,0.000362,30]
[359202679,1745807439653,-166.0,0.000362,14]
[359202680,1745807439663,-166.0,0.000362,14]
[359202681,1745807439672,-168.0,0.000362,14]
[359202682,1745807439682,-202.09304353,0.0003621,2]
[359202683,1745807439691,-262.86520119,0.0003624,2]
[359202684,1745807439700,-515.4,0.00036435,2]
[359202685,1745807439709,-400.0,0.00036435,2]
[359202686,1745807439718,-400.0,0.00036438,2]
[359202687,1745807439729,-762.54,0.00036438,2]
[359202688,1745807439738,-982.9,0.00036438,2]
[359202689,1745807439748,-400.0,0.00036438,2]
[359202690,1745807439758,-562.53,0.00036438,2]
[359202691,1745807439768,-540.3,0.00036438,2]
[359202692,1745807439777,-536.8,0.00036438,2]
[359202693,1745807439787,-400.0,0.00036438,2]
[359202695,1745807439797,-468.62230801,0.00036452,13]
[359202697,1745807439806,-177.53230176,0.00036498,2]
[359202698,1745807439816,-1187.7,0.00036499,38]
[359202699,1745807439824,-379.99606994,0.00036519,60]
[359202700,1745807439834,-500.4904128,0.00036573,5]
[359202701,1745807439843,-299.55077343,0.00036573,5]
[359202702,1745807439853,-280.92569284,0.00036573,5]
[359202703,1745807439862,-200.91431806,0.00036573,5]
[359202704,1745807439871,-1187.7,0.00036649,60]
[359202705,1745807439881,-515.4,0.00036709,2]
[359202706,1745807439890,-400.0,0.00036709,2]
[359202707,1745807439899,-400.0,0.00036712,2]
[359202708,1745807439909,-762.54,0.00036712,2]
[359202709,1745807439918,-982.9,0.00036712,2]
[359202710,1745807439927,-400.0,0.00036712,2]
[359202711,1745807439937,-562.53,0.00036712,2]
[359202712,1745807439946,-540.3,0.00036712,2]
[359202713,1745807439956,-536.8,0.00036712,2]
[359202714,1745807439967,-400.0,0.00036712,2]
[359202715,1745807439978,-900.0,0.0003676,5]
[359202716,1745807439987,-468.62230801,0.00036797,13]
[359202717,1745807439996,-1187.7,0.00036799,61]
[359202718,1745807440007,-4400.90012183,0.00036898,120]
[359202719,1745807440016,-313.28589057,0.000369,120]
[359202720,1745807440025,-1187.7,0.00036949,73]
[359202721,1745807440034,-515.4,0.00036983,2]
[359202722,1745807440044,-444.49519585,0.00036983,2]
[359202723,1745807440053,-400.0,0.00036986,2]
[359202724,1745807440063,-762.54,0.00036986,2]
[359202725,1745807440073,-982.9,0.00036986,2]
[359202726,1745807440083,-400.0,0.00036986,2]
[359202727,1745807440093,-562.53,0.00036986,2]
[359202728,1745807440102,-540.3,0.00036986,2]
[359202729,1745807440112,-536.8,0.00036986,2]
[359202730,1745807440121,-400.0,0.00036986,2]
[359202731,1745807440130,-64164.10974313,0.00037,6]
[359202732,1745807440285,1510.55211432,0.00025569,2]
[359202733,1745807440362,-256.29987,0.000275,120]
[359202734,1745807440373,-12586.92143865,0.00031754,2]
[359202735,1745807440383,-500.0,0.00031765,2]
[359202736,1745807440392,-500.0,0.00031765,2]
[359202737,1745807440401,-564.94189227,0.00031765,2]
[359202738,1745807440411,-500.0,0.00032876,2]
[359202739,1745807440421,-400.0,0.00032876,2]
[359202740,1745807440431,-409.70691755,0.0003315,2]
[359202741,1745807440441,-432.85,0.0003315,2]
[359202742,1745807440451,-33600.84974951,0.00037,6]
[359202743,1745807440460,-1187.7,0.00037099,39]
[359202744,1745807440470,-468.62230801,0.00037141,13]
[359202745,1745807440480,-1187.7,0.00037249,78]
[359202746,1745807440489,-515.4,0.00037257,2]
[359202747,1745807440499,-538.84763832,0.0003726,2]
[359202748,1745807440508,-762.54,0.0003726,2]
[359202749,1745807440518,-982.9,0.0003726,2]
[359202750,1745807440527,-400.0,0.0003726,2]
[359202751,1745807440537,-562.53,0.0003726,2]
[359202752,1745807440547,-540.3,0.0003726,2]
[359202753,1745807440556,-536.8,0.0003726,2]
[359202754,1745807440566,-283.46,0.0003726,2]
[359202755,1745807440575,-1854.0523178,0.00037296,4]
[359202756,1745807440585,-200.0,0.00037296,14]
[359202757,1745807440596,-200.76289526,0.00037296,14]
[359202758,1745807440607,-1187.7,0.00037399,80]
[359202759,1745807440617,-468.62230801,0.00037486,13]
[359202760,1745807440628,-2000.0,0.000375,30]
[359202761,1745807440639,-2000.0,0.000375,30]
[359202762,1745807440651,-2000.0,0.000375,30]
[359202763,1745807440661,-2000.0,0.000375,30]
[359202764,1745807440670,-2000.0,0.000375,30]
[359202765,1745807440679,-2000.0,0.000375,30]
[359202766,1745807440688,-2000.0,0.000375,30]
[359202767,1745807440698,-2000.0,0.000375,30]
[359202768,1745807440707,-2000.0,0.000375,30]
[359202769,1745807440717,-2000.0,0.000375,30]
[359202770,1745807440727,-2000.0,0.000375,30]
[359202771,1745807440736,-2000.0,0.000375,30]